{"text_format":"3","workbook":"xlsx","n_sheets":1,"sheets":["Mont molerski radovi i oprema"],"not_rendered":{"defined_names":1},"read":"whole","date_system":"1900"}

{"sheet":"Mont molerski radovi i oprema","index":0,"n_rows":131,"n_cols":9,"rows_kept":131,"merged":[[129,0,129,7],[130,0,130,7]]}
[{"v":1,"d":"1.000"},null,"МОНТАЖНО-МОЛЕРСКО РАДОВИ И ОПРЕМА ЕНТЕРИЈЕРА:"]
[{"$f":"IF(B:B<>\"\",MAX($A$1:A1)+0.001,\"\")","v":""}]
["Поз.",null,"Опис позиције:","Јед.м.","Кол.",null,"Јед. цена без Пдв-а (РСД)",null,"Укупна цена без Пдв-а (РСД)"]
[]
[{"$f":"IF(B:B<>\"\",MAX($A$1:A4)+0.001,\"\")","v":1.001},":","Израда преградног зида дебљине 100 мм,једнострука метална потконструкција обложена обострано двоструким гипс картонским плоћама ГК12.5 мм. Преградни неносив зид израдити од поцинкованих профила ЦМ50. Саставе обрадити глет масом и бандаж тракама по упутству пројектанта. У цену улази и радна скела. Обраĉун по м2 постављене површине скупа са материјалом и радом."]
[]
[{"$f":"IF(B:B<>\"\",MAX(#REF!)+0.001,\"\")","v":""},null,null,"  m2",{"v":100,"d":"100.00"},"x",null,"="]
[]
[{"$f":"IF(B:B<>\"\",MAX($A$1:A8)+0.001,\"\")","v":{"v":1.0019999999999998,"d":"1.002"}},":","Облагање зидова гипс картонским плочама ГКБ дебљине 2 x 12,5 мм, са израдом металне подконструкцијом причвршћене за зид. Укупна дебљина облоге је 48 мм.\nМеталну подконструкцију израдити од поцинкованих профила ЦД 60x27 мм, а по пројекту и упутству произвођаĉа. Саставе обрадити глет масом и бандаж траком, по упутству пројектанта. У цену улази и радна скела. Обрачун по м2 постављене површине скупа са материјалом и радом."]
[]
[{"$f":"IF(B:B<>\"\",MAX(#REF!)+0.001,\"\")","v":""},null,null,"  m2",{"v":240,"d":"240.00"},"x",null,"="]
[]
[{"$f":"IF(B:B<>\"\",MAX($A$1:A12)+0.001,\"\")","v":{"v":1.0029999999999997,"d":"1.003"}},":","15. Израда скрипторијума од гипс картонских плоча ГКБ дебљине 12,5 мм, са израдом металне потконструкцијц причвршћене за зидове и међуспратну конструкцију. Скрипторијум чине две спојене целине-нише које садрже шест стубова 25/25цм висине 225цм, над којима су формиране две куполе од укрштених лукова. Лукови су горњом страном спојени са међуспратном конструкцијом.\nМеталну потконструкцију израдити од поцинкованих профила, а по пројекту и упутству произвођаĉа. Саставе обрадити глет масом и бандаж траком, по упутству пројектанта. У цену улази и радна скела. Обрачун по м2 постављене развијене површине комплетног скрипторијума скупа са материјалом и радом."]
[]
[{"$f":"IF(B:B<>\"\",MAX(#REF!)+0.001,\"\")","v":""},null,null,"  m2",{"v":100,"d":"100.00"},"x",null,"="]
[]
[{"$f":"IF(B:B<>\"\",MAX($A$1:A16)+0.001,\"\")","v":{"v":1.0039999999999996,"d":"1.004"}},":","4 и 19. Израда носача књига од гипс картонских плоча ГКБ дебљине 12,5 мм, са израдом металне потконструкцијце причвршћене у под и плафон. Горњи лучни зид-ваљак, је горњом страном спојен са међуспратном конструкцијом.\nМеталну потконструкцију израдити од поцинкованих профила, а по пројекту и упутству произвођача. Саставе обрадити глет масом и бандаж траком, по упутству пројектанта. У цену улази и радна скела. Обрачун паушално комплетне књиге."]
[]
[{"$f":"IF(B:B<>\"\",MAX(#REF!)+0.001,\"\")","v":""},null,null,"ком.",{"v":4,"d":"4.00"},"x",null,"="]
[]
[{"$f":"IF(B:B<>\"\",MAX($A$1:A20)+0.001,\"\")","v":{"v":1.0049999999999994,"d":"1.005"}},":","9. ''Печат'' са плафона.\nПечат укупних димензија ДџШџВ=240x100x90цм. Печат од од гипс картонских плоча ГКБ дебљине 12,5 мм, са израдом металне потконструкције причвршћене у плафон. На печату израдити словни натпис ЋИРИЛИЦА.\nМеталну потконструкцију израдити од поцинкованих профила, а по пројекту и упутству произвођаĉа. Саставе обрадити глет масом и бандаж траком, по упутству пројектанта. У цену улази и радна скела. Обрачун паушално комплетне позиције."]
[]
[{"$f":"IF(B:B<>\"\",MAX(#REF!)+0.001,\"\")","v":""},null,null,"ком.",{"v":1,"d":"1.00"},"x",null,"="]
[]
[{"$f":"IF(B:B<>\"\",MAX($A$1:A23)+0.001,\"\")","v":{"v":1.0059999999999993,"d":"1.006"}},":","Бојење унутрашњих зидова и плафона.\nБојење постићи висококвалитетном , влагоотпорном бојом до добијања равномерне обојености. Бојом у тону према Палети боја из пројектне документације за наведену просторију.\nОбрачун по м2."]
[]
[null,null,"Плафони:","  m2",{"v":250,"d":"250.00"},"x",null,"="]
[null,null,"Зидови:","  m2",{"v":550,"d":"550.00"},"x",null,"="]
[]
[{"$f":"IF(B:B<>\"\",MAX($A$1:A29)+0.001,\"\")","v":{"v":1.0069999999999992,"d":"1.007"}},":","Израда ликовних педстава по мотивима Научног тима. На чврстој подлози израдити у атељеу од стране еминентног ликовног уметника трајним бојама ликовне представе према упутству Научног тима и димензијама из пројектне документације. Елемете транспортовати и монтирати на лицу места на за то предвиђене позиције. У цену улази сав материјал и рад, са монтажом.\nОбрачун по м2."]
[]
[{"$nulls":3},"  m2",{"v":100,"d":"100.00"},"x",null,"="]
[]
[{"$f":"IF(B:B<>\"\",MAX($A$1:A33)+0.001,\"\")","v":{"v":1.0079999999999991,"d":"1.008"}},":","25. Хоризонтална застакљена витрина за излагање и одлагање у сувенирници.\nВитрина укупних димензија ДxШxВ=200x60x90цм. Примењени материјали: бојени медиапан, сигурносно стакло, оков са бравицама за закључавање ’’БЛУМ’’ или друго еквивалентних карактеристика. Елемент снабдети потребним инсталацијама за обезбеђење, комуникацију и расвету. У цену урачуната израда према упутству инвеститора уз сагласност пројектанта и уградња. Мере корисцене у предмеру и предрацуну за дату позицију су архитектонске. Мере обавезно проверити на лицу места! \nОбрачун по комаду."]
[]
[{"$f":"IF(B:B<>\"\",MAX($A$1:A34)+0.001,\"\")","v":""},null,null,"ком.",{"v":1,"d":"1.00"},"x",null,"="]
[{"$f":"IF(B:B<>\"\",MAX($A$1:A36)+0.001,\"\")","v":""}]
[{"$f":"IF(B:B<>\"\",MAX($A$1:A37)+0.001,\"\")","v":{"v":1.008999999999999,"d":"1.009"}},":","26. радни сто-каса у сувенирници. \nРадни сто-каса укупних димензија ДxШxВ=110x55x90цм. Примењени материјали: бојени медиапан, оков са бравицама за закључавање ’’БЛУМ’’ или друго еквивалентних карактеристика. Елемент снабдети потребним инсталацијама за обезбеђење, комуникацију и расвету. У цену урачуната израда према упутству инвеститора уз сагласност пројектанта и уградња. Мере корисцене у предмеру и предрацуну за дату позицију су архитектонске. Мере обавезно проверити на лицу места! \nОбрачун по комаду."]
[]
[{"$f":"IF(B:B<>\"\",MAX($A$1:A38)+0.001,\"\")","v":""},null,null,"ком.",{"v":1,"d":"1.00"},"x",null,"="]
[{"$f":"IF(B:B<>\"\",MAX($A$1:A40)+0.001,\"\")","v":""}]
[{"$f":"IF(B:B<>\"\",MAX($A$1:A41)+0.001,\"\")","v":{"v":1.009999999999999,"d":"1.010"}},":","27. Зидна застакљена полица у сувенирници. \nПолица димензија ШxВ=30x200цм. Полица са затвореним делом за одлагање у комбинацији бојени медиапан, застакљеним простором за излагање са медијапан леђима, и капителом за уградну расвету. Примењени материјали: фурнир-медиапан, сигурносно стакло, оков са бравицама за закључавање ’’БЛУМ’’ или друго еквивалентних карактеристика. Елемент снабдети потребним инсталацијама за обезбеђење, комуникацију и расвету. У цену урачуната израда према упутству инвеститора уз сагласност пројектанта и уградња. Мере корисцене у предмеру и предрацуну за дату позицију су архитектонске. Мере обавезно проверити на лицу места!\nОбрачун по м'."]
[{"$f":"IF(B:B<>\"\",MAX($A$1:A42)+0.001,\"\")","v":""}]
[{"$f":"IF(B:B<>\"\",MAX($A$1:A43)+0.001,\"\")","v":""},null,null,"m'",{"v":14,"d":"14.00"},"x",null,"="]
[]
[{"$f":"IF(B:B<>\"\",MAX($A$1:A45)+0.001,\"\")","v":{"v":1.0109999999999988,"d":"1.011"}},":","5. Вертикална застакљена витрина за излагање експоната.\nВитрина укупних димензија ДxШxВ=90x45x370цм. Виртрина са постаментом од бојеног МДФ-а, застакљеним простором за излагање, и МДФ капителом за уградну расвету. Примењени материјали: бојени МДФ, сигурносно стакло, оков са бравицама за закључавање ’’БЛУМ’’ или друго еквивалентних карактеристика. Елемент снабдети потребним инсталацијама за обезбеђење, комуникацију и расвету. У цену урачуната израда према упутству инвеститора уз сагласност пројектанта и уградња. Мере корисцене у предмеру и предрацуну за дату позицију су архитектонске. Мере обавезно проверити на лицу места! \nОбрачун по комаду."]
[{"$f":"IF(B:B<>\"\",MAX($A$1:A46)+0.001,\"\")","v":""}]
[{"$f":"IF(B:B<>\"\",MAX($A$1:A47)+0.001,\"\")","v":""},null,null,"ком.",{"v":3,"d":"3.00"},"x",null,"="]
[]
[{"$f":"IF(B:B<>\"\",MAX($A$1:A49)+0.001,\"\")","v":{"v":1.0119999999999987,"d":"1.012"}},":","6. Вертикална застакљена витрина за излагање експоната.\nВитрина укупних димензија ДxШxВ=90x15x370цм. Виртрина са постаментом од бојеног МДФ-а, застакљеним простором за излагање, и МДФ капителом за уградну расвету. Примењени материјали: бојени МДФ, сигурносно стакло, оков са бравицама за закључавање ’’БЛУМ’’ или друго еквивалентних карактеристика. Елемент снабдети потребним инсталацијама за обезбеђење, комуникацију и расвету. У цену урачуната израда према упутству инвеститора уз сагласност пројектанта и уградња. Мере корисцене у предмеру и предрацуну за дату позицију су архитектонске. Мере обавезно проверити на лицу места! \nОбрачун по комаду."]
[{"$f":"IF(B:B<>\"\",MAX($A$1:A50)+0.001,\"\")","v":""}]
[{"$f":"IF(B:B<>\"\",MAX($A$1:A51)+0.001,\"\")","v":""},null,null,"ком.",{"v":2,"d":"2.00"},"x",null,"="]
[]
[{"$f":"IF(B:B<>\"\",MAX($A$1:A53)+0.001,\"\")","v":{"v":1.0129999999999986,"d":"1.013"}},":","22. Вертикална застакљена витрина за излагање експоната.\nВитрина укупних димензија ДxШxВ=140x15x370цм. Виртрина са постаментом од бојеног МДФ-а, застакљеним простором за излагање, и МДФ капителом за уградну расвету. Примењени материјали: бојени МДФ, сигурносно стакло, оков са бравицама за закључавање ’’БЛУМ’’ или друго еквивалентних карактеристика. Елемент снабдети потребним инсталацијама за обезбеђење, комуникацију и расвету. У цену урачуната израда према упутству инвеститора уз сагласност пројектанта и уградња. Мере корисцене у предмеру и предрацуну за дату позицију су архитектонске. Мере обавезно проверити на лицу места! \nОбрачун по комаду."]
[{"$f":"IF(B:B<>\"\",MAX($A$1:A54)+0.001,\"\")","v":""}]
[{"$f":"IF(B:B<>\"\",MAX($A$1:A55)+0.001,\"\")","v":""},null,null,"ком.",{"v":2,"d":"2.00"},"x",null,"="]
[]
[{"$f":"IF(B:B<>\"\",MAX($A$1:A57)+0.001,\"\")","v":{"v":1.0139999999999985,"d":"1.014"}},":","8. Вертикална застакљена витрина за излагање експоната.\nВитрина укупних димензија ДxШxВ=250x15x370цм. Виртрина са постаментом од бојеног МДФ-а, застакљеним простором за излагање, и МДФ капителом за уградну расвету. Примењени материјали: бојени МДФ, сигурносно стакло, оков са бравицама за закључавање ’’БЛУМ’’ или друго еквивалентних карактеристика. Елемент снабдети потребним инсталацијама за обезбеђење, комуникацију и расвету. У цену урачуната израда према упутству инвеститора уз сагласност пројектанта и уградња. Мере корисцене у предмеру и предрацуну за дату позицију су архитектонске. Мере обавезно проверити на лицу места! \nОбрачун по комаду."]
[{"$f":"IF(B:B<>\"\",MAX($A$1:A58)+0.001,\"\")","v":""}]
[{"$f":"IF(B:B<>\"\",MAX($A$1:A59)+0.001,\"\")","v":""},null,null,"ком.",{"v":1,"d":"1.00"},"x",null,"="]
[]
[{"$f":"IF(B:B<>\"\",MAX($A$1:A61)+0.001,\"\")","v":{"v":1.0149999999999983,"d":"1.015"}},":","36. Вертикална застакљена витрина за излагање експоната.\nВитрина укупних димензија ДxШxВ=110x15x370цм. Виртрина са постаментом од бојеног МДФ-а, застакљеним простором за излагање, и МДФ капителом за уградну расвету. Примењени материјали: бојени МДФ, сигурносно стакло, оков са бравицама за закључавање ’’БЛУМ’’ или друго еквивалентних карактеристика. Елемент снабдети потребним инсталацијама за обезбеђење, комуникацију и расвету. У цену урачуната израда према упутству инвеститора уз сагласност пројектанта и уградња. Мере корисцене у предмеру и предрацуну за дату позицију су архитектонске. Мере обавезно проверити на лицу места! \nОбрачун по комаду."]
[{"$f":"IF(B:B<>\"\",MAX($A$1:A62)+0.001,\"\")","v":""}]
[{"$f":"IF(B:B<>\"\",MAX($A$1:A63)+0.001,\"\")","v":""},null,null,"ком.",{"v":1,"d":"1.00"},"x",null,"="]
[]
[{"$f":"IF(B:B<>\"\",MAX($A$1:A64)+0.001,\"\")","v":{"v":1.0159999999999982,"d":"1.016"}},":","10. Хоризонтална застакљена витрина за излагање експоната.\nВитрина укупних димензија ДxШxВ=140x45x90цм. Виртрина са постаментом од бојеног МДФ-а и застакљеним простором за излагање. Примењени материјали: бојени МДФ, сигурносно стакло, оков са бравицама за закључавање ’’БЛУМ’’ или друго еквивалентних карактеристика. Елемент снабдети потребним инсталацијама за обезбеђење, комуникацију и расвету. У цену урачуната израда према упутству инвеститора уз сагласност пројектанта и уградња. Мере корисцене у предмеру и предрацуну за дату позицију су архитектонске. Мере обавезно проверити на лицу места! \nОбрачун по комаду."]
[{"$f":"IF(B:B<>\"\",MAX($A$1:A66)+0.001,\"\")","v":""}]
[{"$f":"IF(B:B<>\"\",MAX($A$1:A67)+0.001,\"\")","v":""},null,null,"ком.",{"v":2,"d":"2.00"},"x",null,"="]
[]
[{"$f":"IF(B:B<>\"\",MAX($A$1:A69)+0.001,\"\")","v":{"v":1.0169999999999981,"d":"1.017"}},":","14. Хоризонтална застакљена витрина за излагање експоната.\nВитрина укупних димензија ДxШxВ=120x45x90цм. Виртрина са постаментом од бојеног МДФ-а и застакљеним простором за излагање. Примењени материјали: бојени МДФ, сигурносно стакло, оков са бравицама за закључавање ’’БЛУМ’’ или друго еквивалентних карактеристика. Елемент снабдети потребним инсталацијама за обезбеђење, комуникацију и расвету. У цену урачуната израда према упутству инвеститора уз сагласност пројектанта и уградња. Мере корисцене у предмеру и предрацуну за дату позицију су архитектонске. Мере обавезно проверити на лицу места! \nОбрачун по комаду."]
[{"$f":"IF(B:B<>\"\",MAX($A$1:A70)+0.001,\"\")","v":""}]
[{"$f":"IF(B:B<>\"\",MAX($A$1:A71)+0.001,\"\")","v":""},null,"Prostorija 5:","kom.",{"v":2,"d":"2.00"},"x",null,"="]
[]
[{"$f":"IF(B:B<>\"\",MAX($A$1:A73)+0.001,\"\")","v":{"v":1.017999999999998,"d":"1.018"}},":","21. Хоризонтална застакљена витрина за излагање експоната.\nВитрина укупних димензија ДxШxВ=120x45x90цм. Виртрина са постаментом од бојеног МДФ-а и застакљеним простором за излагање. Примењени материјали: бојени МДФ, сигурносно стакло, оков са бравицама за закључавање ’’БЛУМ’’ или друго еквивалентних карактеристика. Елемент снабдети потребним инсталацијама за обезбеђење, комуникацију и расвету. У цену урачуната израда према упутству инвеститора уз сагласност пројектанта и уградња. Мере корисцене у предмеру и предрацуну за дату позицију су архитектонске. Мере обавезно проверити на лицу места! \nОбрачун по комаду."]
[{"$f":"IF(B:B<>\"\",MAX($A$1:A74)+0.001,\"\")","v":""}]
[{"$f":"IF(B:B<>\"\",MAX($A$1:A75)+0.001,\"\")","v":""},null,null,"ком.",{"v":3,"d":"3.00"},"x",null,"="]
[]
[{"$f":"IF(B:B<>\"\",MAX($A$1:A77)+0.001,\"\")","v":{"v":1.018999999999998,"d":"1.019"}},":","39. Хоризонтална застакљена витрина за излагање експоната.\nВитрина укупних димензија ДxШxВ=230x45x90цм. Виртрина са постаментом од бојеног МДФ-а и застакљеним простором за излагање. Примењени материјали: бојени МДФ, сигурносно стакло, оков са бравицама за закључавање ’’БЛУМ’’ или друго еквивалентних карактеристика. Елемент снабдети потребним инсталацијама за обезбеђење, комуникацију и расвету. У цену урачуната израда према упутству инвеститора уз сагласност пројектанта и уградња. Мере корисцене у предмеру и предрацуну за дату позицију су архитектонске. Мере обавезно проверити на лицу места! \nОбрачун по комаду."]
[{"$f":"IF(B:B<>\"\",MAX($A$1:A78)+0.001,\"\")","v":""}]
[{"$f":"IF(B:B<>\"\",MAX($A$1:A79)+0.001,\"\")","v":""},null,null,"ком.",{"v":2,"d":"2.00"},"x",null,"="]
[]
[{"$f":"IF(B:B<>\"\",MAX($A$1:A80)+0.001,\"\")","v":{"v":1.0199999999999978,"d":"1.020"}},":","32. Хоризонтални постамент за таблете.\nПостамент укупних димензија ДxШxВ=220x50x90цм. Постамент од бојеног МДФ-а. Елемент снабдети потребним инсталацијама за обезбеђење, комуникацију и расвету. У цену урачуната израда према упутству инвеститора уз сагласност пројектанта и уградња. Мере корисцене у предмеру и предрацуну за дату позицију су архитектонске. Мере обавезно проверити на лицу места! \nОбрачун по комаду."]
[{"$f":"IF(B:B<>\"\",MAX($A$1:A82)+0.001,\"\")","v":""}]
[{"$f":"IF(B:B<>\"\",MAX($A$1:A83)+0.001,\"\")","v":""},null,null,"ком.",{"v":4,"d":"4.00"},"x",null,"="]
[]
[{"$f":"IF(B:B<>\"\",MAX($A$1:A85)+0.001,\"\")","v":{"v":1.0209999999999977,"d":"1.021"}},":","38. Хоризонтални постамент за таблете.\nПостамент укупних димензија ДxШxВ=175x50x90цм. Постамент од бојеног МДФ-а. Елемент снабдети потребним инсталацијама за обезбеђење, комуникацију и расвету. У цену урачуната израда према упутству инвеститора уз сагласност пројектанта и уградња. Мере корисцене у предмеру и предрацуну за дату позицију су архитектонске. Мере обавезно проверити на лицу места! \nОбрачун по комаду."]
[{"$f":"IF(B:B<>\"\",MAX($A$1:A86)+0.001,\"\")","v":""}]
[{"$f":"IF(B:B<>\"\",MAX($A$1:A87)+0.001,\"\")","v":""},null,null,"ком.",{"v":2,"d":"2.00"},"x",null,"="]
[]
[{"$f":"IF(B:B<>\"\",MAX($A$1:A89)+0.001,\"\")","v":{"v":1.0219999999999976,"d":"1.022"}},":","39. Хоризонтални постамент за таблете.\nПостамент укупних димензија ДxШxВ=120x50x90цм. Постамент од бојеног МДФ-а. Елемент снабдети потребним инсталацијама за обезбеђење, комуникацију и расвету. У цену урачуната израда према упутству инвеститора уз сагласност пројектанта и уградња. Мере корисцене у предмеру и предрацуну за дату позицију су архитектонске. Мере обавезно проверити на лицу места! \nОбрачун по комаду."]
[{"$f":"IF(B:B<>\"\",MAX($A$1:A90)+0.001,\"\")","v":""}]
[{"$f":"IF(B:B<>\"\",MAX($A$1:A91)+0.001,\"\")","v":""},null,null,"ком.",{"v":1,"d":"1.00"},"x",null,"="]
[]
[{"$f":"IF(B:B<>\"\",MAX($A$1:A92)+0.001,\"\")","v":{"v":1.0229999999999975,"d":"1.023"}},":","4 и 19. Изложбене књиге.\nКњиге укупних димензија 2xШxВ=2x150x180цм. Књиге од бојеног МДФ-а. Елемент снабдети потребним инсталацијама за обезбеђење, комуникацију и расвету. У цену урачуната израда према упутству инвеститора уз сагласност пројектанта и уградња. Мере корисцене у предмеру и предрацуну за дату позицију су архитектонске. Мере обавезно проверити на лицу места! \nОбрачун по комаду."]
[{"$f":"IF(B:B<>\"\",MAX($A$1:A94)+0.001,\"\")","v":""}]
[{"$f":"IF(B:B<>\"\",MAX($A$1:A95)+0.001,\"\")","v":""},null,null,"ком.",{"v":2,"d":"2.00"},"x",null,"="]
[]
[{"$f":"IF(B:B<>\"\",MAX($A$1:A97)+0.001,\"\")","v":{"v":1.0239999999999974,"d":"1.024"}},":","4 и 19. Хоризонтална лучна изложбена витрина за књиге. Витрина је део веће композиције ''књига'' и налази се унутар подног елемента од гипскартонских плоча.Витрина укупних димензија ШxВ=180x15цм. Витрина од бојеног МДФ-а застакљена сигурносним стаклом. Елемент снабдети потребним инсталацијама за обезбеђење, комуникацију и расвету. У цену урачуната израда према упутству инвеститора уз сагласност пројектанта и уградња. Мере корисцене у предмеру и предрацуну за дату позицију су архитектонске. Мере обавезно проверити на лицу места! \nОбрачун по комаду."]
[{"$f":"IF(B:B<>\"\",MAX($A$1:A98)+0.001,\"\")","v":""}]
[{"$f":"IF(B:B<>\"\",MAX($A$1:A99)+0.001,\"\")","v":""},null,null,"ком.",{"v":2,"d":"2.00"},"x",null,"="]
[]
[{"$f":"IF(B:B<>\"\",MAX($A$1:A101)+0.001,\"\")","v":{"v":1.0249999999999972,"d":"1.025"}},":","33. Декоративне облоге у позицији надвратника.\nОблоге од бојеног МДФ-а у свему према пројектној документацији. У цену урачуната израда према упутству инвеститора уз сагласност пројектанта и уградња. Мере корисцене у предмеру и предрацуну за дату позицију су архитектонске. Мере обавезно проверити на лицу места! \nОбрачун по м2 облоге."]
[{"$f":"IF(B:B<>\"\",MAX($A$1:A102)+0.001,\"\")","v":""}]
[{"$f":"IF(B:B<>\"\",MAX($A$1:A103)+0.001,\"\")","v":""},null,null,"  m2",{"v":18,"d":"18.00"},"x",null,"="]
[]
[{"$f":"IF(B:B<>\"\",MAX($A$1:A105)+0.001,\"\")","v":{"v":1.0259999999999971,"d":"1.026"}},":","2. Декоративна слова од бојеног МДФ-а.\nСлова од бојеног МДФ-а у свему према пројектној документацији. У цену урачуната израда према упутству инвеститора уз сагласност пројектанта и уградња. Мере корисцене у предмеру и предрацуну за дату позицију су архитектонске. Мере обавезно проверити на лицу места! \nОбрачун по ком."]
[{"$f":"IF(B:B<>\"\",MAX($A$1:A106)+0.001,\"\")","v":""}]
[{"$f":"IF(B:B<>\"\",MAX($A$1:A107)+0.001,\"\")","v":""},null,null,"kom.",{"v":60,"d":"60.00"},"x",null,"="]
[]
[{"$f":"IF(B:B<>\"\",MAX($A$1:A109)+0.001,\"\")","v":{"v":1.026999999999997,"d":"1.027"}},":","Подлога за легенду/штампани материјал. Подлога од белог медијапана на подконструкцији причвршћеној на чврсту подлогу помоћу металних везних средстава. У цену урачуната израда према упутству инвеститора уз сагласност пројектанта и уградња. Мере корисцене у предмеру и предрацуну за дату позицију су архитектонске. Мере обавезно проверити на лицу места! \nОбрачун по м2."]
[{"$f":"IF(B:B<>\"\",MAX($A$1:A110)+0.001,\"\")","v":""}]
[{"$f":"IF(B:B<>\"\",MAX($A$1:A111)+0.001,\"\")","v":""},null,null,"  m2",{"v":100,"d":"100.00"},"x",null,"="]
[]
[{"$f":"IF(B:B<>\"\",MAX($A$1:A113)+0.001,\"\")","v":{"v":1.027999999999997,"d":"1.028"}},":","Расвета ЛЕД рефлекторима на шинама (један рефлектор по м’). У цену улазе шине, расвета, и сав везни материјал. У цену НЕ улази примарни развод електроинсталација до позиција шинске расвете. Користити трофазну расвету типа ’’ЛТЦ’’, ’’ОСРАМ’’, ’’ФИЛИПС’’... вишег квалитета по избору инвеститора уз сагласност пројектанта.\nОбрачун по м'."]
[]
[{"$f":"IF(B:B<>\"\",MAX($A$1:A115)+0.001,\"\")","v":""},null,null,"m'",{"v":70,"d":"70.00"},"x",null,"="]
[{"$f":"IF(B:B<>\"\",MAX($A$1:A116)+0.001,\"\")","v":""}]
[{"$f":"IF(B:B<>\"\",MAX($A$1:A117)+0.001,\"\")","v":{"v":1.0289999999999968,"d":"1.029"}},":","Набавка и постављање тешких роло завеса висине 240цм. Завесе са свим потребним прибором за качење. Завесе по избору инвеститора уз сагласност пројектанта.\nОбрачун по м' хоризонталне пројекције."]
[]
[{"$nulls":3},"m'",{"v":19,"d":"19.00"},"x",null,"="]
[]
[{"$f":"IF(B:B<>\"\",MAX($A$1:A121)+0.001,\"\")","v":{"v":1.0299999999999967,"d":"1.030"}},":","Канцеларијска столица. Набавка канцеларијске столице према упутству инвеститора уз сагласност пројектанта.\nОбрачун по комаду."]
[{"$f":"IF(B:B<>\"\",MAX($A$1:A122)+0.001,\"\")","v":""}]
[{"$f":"IF(B:B<>\"\",MAX($A$1:A123)+0.001,\"\")","v":""},null,null,"ком.",{"v":1,"d":"1.00"},"x",null,"="]
[]
[{"$f":"IF(B:B<>\"\",MAX($A$1:A125)+0.001,\"\")","v":{"v":1.0309999999999966,"d":"1.031"}},":","Израда и постављање лутке Светог апостола и јеванђелисте Луке у природној величини. Лутку израдити и поставити на пројектом предвиђено место према упутствима Инвеститора.\nОбрачун по ком."]
[]
[{"$nulls":3},"ком.",{"v":1,"d":"1.00"},"x",null,"="]
[]
["УКУПНА ЦЕНА БЕЗ ПДВ-А:"]
["УКУПНА ЦЕНА СА ПДВ-ОМ:"]